fUSD/lending_fUSD_20240113
["ID","MTS","AMOUNT","RATE_DAILY","PERIOD"]
[311440798,1705109443961,-10259.7429379,0.0002999,2]
[311440799,1705109443970,-307.89071175,0.0002999,2]
[311440800,1705109445913,-433.53654316,0.000294,2]
[311440801,1705109445923,-1616.0,0.00029973,5]
[311440802,1705109445933,-5318.85727265,0.0002999,2]
[311440803,1705109445943,-1121.80618419,0.0002999,2]
[311440804,1705109445979,-851.83632651,0.0002999,2]
[311440805,1705109445989,-150.01,0.00029993,2]
[311440806,1705109445998,-349.00633959,0.00029993,2]
[311440807,1705109446051,-360.8545052,0.00029993,2]
[311440808,1705109446100,-398.03518492,0.00029993,2]
[311440809,1705109446219,-402.10738216,0.00029993,2]
[311440810,1705109446231,-282.35498996,0.00029993,2]
[311440825,1705110632216,-383.86171178,0.00022999,2]
[311440826,1705110632225,-156.89,0.00023,2]
[311440827,1705110632238,-210.0,0.00023092,2]
[311440828,1705110632248,-152.0,0.0002472,3]
[311440829,1705110632258,-152.0,0.000266,4]
[311440830,1705110632268,-262.71,0.00026619,2]
[311440831,1705110632277,-126.80435838,0.00027705,9]
[311440856,1705110638032,-201.83579665,0.00025,2]
[311440857,1705110638042,-83.19564162,0.00027705,9]
[311440858,1705110638052,-205.1634825,0.00028337,2]
[311440859,1705110638113,-44.8365175,0.00028337,2]
[311440860,1705110638122,-2583.56642224,0.00028351,2]
[311440861,1705110638260,-343.81017987,0.00028351,2]
[311440875,1705110640531,-337.90030981,0.00028351,2]
[311440876,1705110640544,-684.489806,0.00028351,2]
[311440877,1705110640556,-1216.49286321,0.00028351,2]
[311440878,1705110640600,-254.4950001,0.00028351,2]
[311440879,1705110640655,-353.65999998,0.00028351,2]
[311440882,1705110642953,-3184.78621335,0.00028351,2]
[311440883,1705110642965,-3759.91920544,0.00028351,2]
[311440884,1705110642974,-1000.0,0.00028385,2]
[311440885,1705110642983,-293.72,0.00028422,2]
[311440886,1705110642992,-7354.52903257,0.00028422,2]
[311440887,1705110643003,-4882.95844277,0.00028422,2]
[311440888,1705110643182,-17222.63252466,0.00028422,2]
[311440889,1705110643192,-258.85,0.00028466,2]
[311440890,1705110643201,-2000.0,0.00028471,2]
[311440891,1705110643211,-152.0,0.00028481,5]
[311440892,1705110643220,-587.28,0.00028496,2]
[311440893,1705110643230,-499.99,0.00028496,2]
[311440894,1705110643239,-68.7956572,0.00028496,2]
[311440901,1705110646021,-3691.1943428,0.00028496,2]
[311440902,1705110646031,-327.9,0.00028515,2]
[311440903,1705110646041,-250.0,0.00028529,2]
[311440904,1705110646050,-858.09310361,0.00028549,2]
[311440905,1705110646257,-326.19856739,0.00028495,2]
[311440906,1705110646268,-668.35803178,0.00028549,2]
[311440907,1705110646311,-3143.31886461,0.00028549,2]
[311440908,1705110646320,-150.0,0.00028651,2]
[311440909,1705110646329,-1155.7,0.00028672,2]
[311440910,1705110646338,-4380.73501505,0.00028801,2]
[311440912,1705110742043,164.69949367,0.000285,120]
[311440914,1705110753751,209.0,0.00022092,2]
[311440915,1705110775438,180.66493994,0.00022,2]
[311440916,1705110799586,485.0,0.0002277,2]
[311440917,1705110846933,8359.98062247,0.0002,2]
[311440931,1705111045263,151.98142843,0.0002277,3]
[311440932,1705111058323,225.0,0.0002277,3]
[311440934,1705111144434,8000.0,0.00018,2]
[311440936,1705111180307,20000.0,0.00021,2]
[311440949,1705111417880,159.74996716,0.000227,2]
[311440950,1705111422806,159.74996709,0.00022722,2]
[311440951,1705111428462,159.74996709,0.00022744,2]
[311440952,1705111432850,159.74996709,0.00022767,2]
[311440953,1705111435581,1000.0,0.000225,2]
[311440954,1705111437816,159.74996709,0.00022789,2]
[311440955,1705111533893,250.0,0.00022715,2]
[311440957,1705111655845,397.64,0.00022661,2]
[311440962,1705111832082,-706.87640532,0.00022799,2]
[311440966,1705111832136,-280.24516117,0.00022799,2]
[311440967,1705111832299,-4286.63107685,0.00022799,2]
[311440968,1705111832309,-1000.0,0.000228,2]
[311440969,1705111832318,-1000.0,0.000228,3]
[311440970,1705111832327,-357.4682,0.000228,2]
[311440971,1705111832336,-309.21,0.00022807,2]
[311440972,1705111832345,-2000.0,0.00022807,2]
[311440973,1705111832354,-800.0,0.0002281,2]
[311440974,1705111832362,-159.74996709,0.00022811,2]
[311440975,1705111832371,-159.74996709,0.00022833,2]
[311440976,1705111832380,-2422.54922607,0.00022849,2]
[311440977,1705111832389,-159.74996709,0.00022856,2]
[311440978,1705111832398,-3469.74,0.00022856,2]
[311440979,1705111832407,-159.74996709,0.00022878,2]
[311440980,1705111832415,-852.21,0.00022878,2]
[311440981,1705111832424,-419.93194991,0.00022898,2]
[311440982,1705111832433,-185.22698714,0.00022898,2]
[311440983,1705111832441,-496.66725035,0.00022898,2]
[311440984,1705111832450,-208.51493585,0.00022898,2]
[311440985,1705111832459,-4601.5307997,0.00022898,2]
[311440987,1705111832469,-2150.77364413,0.00022898,2]
[311440988,1705111832478,-251.79965395,0.00022898,2]
[311440989,1705111832487,-317.18024391,0.00022898,2]
[311440990,1705111832497,-439.07323174,0.00022898,2]
[311440991,1705111832506,-2463.46919537,0.00022898,2]
[311440992,1705111832515,-155.30862142,0.00022898,2]
[311440993,1705111832524,-1363.68267108,0.00022898,2]
[311440995,1705111832533,-319.46160295,0.00022898,2]
[311440997,1705111832542,-502.54213942,0.00022899,2]
[311440999,1705111832551,-1256.9577,0.000229,2]
[311441001,1705111832560,-9218.16215211,0.000229,2]
[311441003,1705111832570,-159.74996709,0.000229,2]
[311441005,1705111832579,-233.42696761,0.000229,2]
[311441006,1705111832589,-31979.44275956,0.000229,2]
[311441030,1705111838274,-93244.09724044,0.000229,2]
[311441031,1705111838284,-49764.85904327,0.000229,2]
[311441032,1705111838293,-352.52356637,0.000229,2]
[311441033,1705111838302,-187.28295857,0.000229,2]
[311441034,1705111838312,-303.68987868,0.000229,2]
[311441035,1705111838322,-58000.0,0.000229,2]
[311441036,1705111838332,-2499.52436189,0.000229,2]
[311441037,1705111838341,-23890.0,0.00022906,2]
[311441038,1705111838352,-150.0,0.00022998,2]
[311441039,1705111838361,-150.0,0.00022999,2]
[311441040,1705111838370,-150.0,0.00022999,2]
[311441041,1705111838379,-150.0,0.00022999,2]
[311441042,1705111838389,-150.0,0.00022999,2]
[311441043,1705111838399,-150.0,0.00022999,2]
[311441044,1705111838409,-150.0,0.00022999,2]
[311441045,1705111838418,-387.23,0.00023,2]
[311441046,1705111838428,-1432950.47623541,0.00023,2]
[311441047,1705111838438,-12407188.20385217,0.00023,2]
[311441048,1705111838450,-734284.11658168,0.00023,2]
[311441049,1705111838460,-30038.39404969,0.00023,2]
[311441050,1705111838469,-434.20947536,0.00023,2]
[311441051,1705111838478,-60219.32079895,0.00023,2]
[311441052,1705111838489,-263477.85005223,0.00023,2]
[311441053,1705111838501,-1912.4869,0.00023,2]
[311441054,1705111838512,-848.26710872,0.00023,2]
[311441055,1705111838623,-626.52455105,0.00023,2]
[311441056,1705111838635,-2060.51103492,0.00023,2]
[311441057,1705111838647,-1626.91967125,0.00023,2]
[311441058,1705111838658,-2353.16136263,0.00023,2]
[311441059,1705111838890,-24247.09887371,0.00023,2]
[311441060,1705111838946,-500.0,0.00023,2]
[311441214,1705111840619,-614.70870623,0.00023,2]
[311441217,1705111840631,-356.99633322,0.00023,2]
[311441236,1705111840801,-202.82772385,0.000228,2]
[311441238,1705111840811,-339.85227615,0.00023,2]
[311441240,1705111840823,-758.28,0.00023,2]
[311441246,1705111840863,-366.27761811,0.00023,2]
[311441248,1705111840875,-1355.399915,0.00023,2]
[311441250,1705111840886,-4224.71522178,0.00023,2]
[311441254,1705111840915,-675.21345931,0.00023,2]
[311441256,1705111840927,-2049.10889,0.00023,2]
[311441258,1705111840939,-2829.84474761,0.00023,2]
[311441285,1705111843068,-202.82772384,0.0002285,2]
[311441286,1705111843079,-226.51359686,0.00023,2]
[311441287,1705111843093,-588.88895051,0.00023,2]
[311441288,1705111843131,-323.74499922,0.00023,2]
[311441289,1705111843143,-3162.91859852,0.00023,2]
[311441290,1705111843192,-1041.59853983,0.00023,2]
[311441291,1705111843602,-202.82772384,0.000229,2]
[311441292,1705111843611,-694.05597498,0.00023,2]
[311441294,1705111844212,-4982.9733,0.00023,2]
[311441301,1705111844293,-1560.0,0.00023,2]
[311441308,1705111846347,-2285.54984427,0.00023,2]
[311441309,1705111846410,-633.709995,0.00023,2]
[311441310,1705111846422,-712.809,0.00023,2]
[311441311,1705111846434,-746.89100001,0.00023,2]
[311441312,1705111846471,-1500.0,0.00023,2]
[311441313,1705111846526,-2329.17685,0.00023,2]
[311441314,1705112495366,150.0,0.00022602,2]
[311441315,1705112495523,150.0,0.00022604,2]
[311441316,1705112553827,209.0,0.0002183,2]
[311441317,1705112622554,150.48408736,0.00022738,2]
[311441318,1705112624402,1158.80911859,0.00022513,2]
[311441344,1705113032368,-337.11312618,0.00022999,2]
[311441345,1705113032378,-212.23766653,0.00023,2]
[311441346,1705113032606,-6786.70620357,0.00023,2]
[311441358,1705113033507,-324.84069009,0.00023,2]
[311441359,1705113033534,-400.0,0.00023,2]
[311441360,1705113033552,-13184.85344069,0.00023,2]
[311441361,1705113033609,-861.30312776,0.00023,2]
[311441362,1705113033627,-337.48271159,0.00023,2]
[311441363,1705113033645,-765.0228798,0.00023,2]
[311441364,1705113033663,-318.3432,0.00023,2]
[311441367,1705113038382,-8749.84328038,0.00023,2]
[311441368,1705113038391,-150.0,0.00023,2]
[311441369,1705113038400,-1158.80911859,0.00023172,2]
[311441370,1705113038410,-1327.00122387,0.00023185,2]
[311441371,1705113038419,-13203.35550497,0.00023278,2]
[311441372,1705113038428,-287.86,0.00023996,2]
[311441373,1705113038438,-3449.0,0.00024,2]
[311441374,1705113038447,-27811.2828502,0.00024,2]
[311441375,1705113038478,-5180.29075955,0.00024,2]
[311441376,1705113038605,-807.63156153,0.00024,2]
[311441377,1705113038801,-2135.79482872,0.00024,2]
[311441378,1705113038811,-155.63414335,0.000241,2]
[311441379,1705113038821,-154.75,0.00024106,2]
[311441380,1705113038832,-499.99,0.00024999,2]
[311441381,1705113038842,-1223.09764071,0.00024999,2]
[311441386,1705113039018,-278.54358985,0.00024999,2]
[311441390,1705113040845,-998.486475,0.00024999,2]
[311441391,1705113040963,-272.460005,0.00024999,2]
[311441392,1705113040975,-637.26935831,0.00024999,2]
[311441393,1705113040986,-319.62133594,0.00024999,2]
[311441394,1705113040997,-1267.80842534,0.00024999,2]
[311441395,1705113041063,-1079.21356301,0.00024999,4]
[311441396,1705113041073,-618.81081056,0.00024999,2]
[311441397,1705113041085,-8041.05170395,0.00025,2]
[311441398,1705113041095,-684.51840498,0.00025,7]
[311441417,1705113043310,-124.1794993,0.00025,7]
[311441418,1705113043320,-1665.0318322,0.00025,2]
[311441419,1705113043335,-18334.9681678,0.00025,2]
[311441420,1705113043344,-630.26679258,0.00025,2]
[311441421,1705113043354,-350.0,0.00025,3]
[311441423,1705113043364,-153.87702814,0.0002509,2]
[311441424,1705113043374,-1320.91505353,0.000251,2]
[311441425,1705113043384,-154.75,0.0002524,2]
[311441426,1705113043393,-177.0,0.00025698,2]
[311441427,1705113043402,-288.59,0.00025936,2]
[311441428,1705113043412,-250.0,0.00025947,2]
[311441429,1705113043421,-360.0,0.00025956,2]
[311441430,1705113043431,-500.0,0.00026002,2]
[311441431,1705113043441,-260.23,0.0002602,2]
[311441432,1705113043450,-150.0,0.00026079,2]
[311441433,1705113043459,-640.0,0.00026117,2]
[311441434,1705113043469,-167.18,0.00026136,2]
[311441435,1705113043479,-159.44,0.0002624,2]
[311441436,1705113043488,-1129.08,0.00026256,2]
[311441437,1705113043497,-287.86,0.0002626,2]
[311441438,1705113043506,-209.0,0.00026283,2]
[311441439,1705113043516,-156.41,0.00026298,2]
[311441440,1705113043525,-154.75,0.00026374,2]
[311441441,1705113043533,-156.57,0.00026559,2]
[311441442,1705113043543,-325.88475786,0.00026575,2]
[311441443,1705113044376,-3353.80212048,0.00026575,2]
[311441444,1705113044387,-510.5000003,0.00026575,2]
[311441445,1705113044399,-2173.53312136,0.00026575,2]
[311441446,1705113044409,-191.95,0.00026607,2]
[311441447,1705113044418,-106.1122181,0.000269,5]
[311441448,1705113044439,-1297.63979379,0.000269,5]
[311441449,1705113044455,-399.92278718,0.000269,5]
[311441450,1705113044482,-1230.21648076,0.000269,5]
[311441451,1705113044491,-288.59,0.00026914,2]
[311441452,1705113044501,-159.44,0.00026945,2]
[311441453,1705113044510,-400.0,0.00027,3]
[311441454,1705113044519,-156.41,0.00027288,2]
[311441455,1705113044528,-169.41,0.00027305,2]
[311441456,1705113044537,-437.18,0.0002737,2]
[311441457,1705113044546,-250.0,0.00027397,2]
[311441458,1705113044555,-250.0,0.000274,2]
[311441459,1705113044565,-154.75,0.00027508,2]
[311441460,1705113044574,-159.44,0.0002765,2]
[311441461,1705113044586,-352.30763409,0.00027874,6]
[311441462,1705113044597,-590.3830408,0.00027874,6]
[311441463,1705113044608,-1559.4888852,0.00027874,6]
[311441464,1705113044620,-308.27448891,0.00027874,6]
[311441465,1705113044630,-358.0790056,0.00027874,2]
[311441466,1705113044638,-288.59,0.00027893,2]
[311441467,1705113044647,-1643.81299998,0.00028,2]
[311441468,1705113044658,-926.38502705,0.00028,2]
[311441469,1705113044669,-1521.56675804,0.00028,2]
[311441470,1705113044685,-443.02243477,0.00028,2]
[311441473,1705113046448,-2859.71598182,0.00028,2]
[311441474,1705113046519,-299.404,0.00028,2]
[311441475,1705113046574,-423.59249196,0.00028,2]
[311441496,1705113942249,1670.0,0.00023,10]
[311441526,1705114231522,-150.0,0.00023,2]
[311441527,1705114231532,-209.0,0.00023283,2]
[311441528,1705114231542,-726.87,0.00023831,2]
[311441529,1705114231552,-164.8031012,0.00023888,2]
[311441530,1705114231561,-395.7504988,0.00023988,2]
[311441531,1705114231573,-331.62881422,0.00023988,2]
[311441532,1705114231709,-4.09068698,0.00023988,2]
[311441533,1705114231718,-729.15,0.00023988,2]
[311441534,1705114231728,-735.32,0.0002419,2]
[311441535,1705114231737,-290.36,0.00024373,2]
[311441536,1705114231746,-386.73538728,0.00024438,2]
[311441544,1705114232351,-334.80461272,0.00024438,2]
[311441545,1705114232360,-156.64016686,0.0002463,2]
[311441546,1705114232369,-283.49,0.0002463,2]
[311441547,1705114232378,-499.99,0.0002463,2]
[311441548,1705114232387,-252.66904042,0.0002463,2]
[311441549,1705114232405,-145.91095958,0.0002463,2]
[311441550,1705114232415,-738.32,0.0002473,2]
[311441551,1705114232424,-359.24607792,0.00025089,2]
[311441552,1705114232435,-271.02071466,0.00025089,2]
[311441553,1705114232444,-117.55450129,0.0002509,2]
[311441554,1705114232545,-602.15549871,0.0002509,2]
[311441555,1705114232555,-156.64016682,0.00025508,2]
[311441556,1705114232565,-730.25,0.00025519,2]
[311441557,1705114232575,-594.99010018,0.00026052,2]
[311441558,1705114232725,-115.21989982,0.00026052,2]
[311441559,1705114232735,-166.94265398,0.00026232,2]
[311441568,1705114237720,-258.69,0.00023,2]
[311441569,1705114237730,-84.09734602,0.00026232,2]
[311441570,1705114237739,-1987.81182483,0.00026282,2]
[311441571,1705114237749,-163.97,0.00026283,2]
[311441572,1705114237758,-2000.0,0.00026291,2]
[311441573,1705114237767,-250.0,0.00026331,2]
[311441574,1705114237777,-288.0,0.00026331,2]
[311441575,1705114237786,-150.0,0.00026386,2]
[311441576,1705114237795,-156.64016682,0.00026386,2]
[311441577,1705114237804,-250.0,0.00026423,2]
[311441578,1705114237814,-189.76,0.00026476,2]
[311441579,1705114237823,-5303.1,0.00026575,2]
[311441580,1705114237832,-290.36,0.00026637,2]
[311441581,1705114237841,-152.27,0.00026804,2]
[311441582,1705114237853,-155.84,0.00026856,2]
[311441583,1705114237863,-712.0,0.00026878,2]
[311441584,1705114237872,-152.27,0.00027102,2]
[311441585,1705114237881,-251.04,0.00027211,2]
[311441586,1705114237890,-156.64016682,0.00027265,2]
[311441587,1705114237899,-250.0,0.00027397,2]
[311441588,1705114237908,-152.27,0.00027399,2]
[311441589,1705114237917,-250.0,0.000274,2]
[311441590,1705114237927,-733.38,0.00027405,2]
[311441591,1705114237936,-165.18,0.00027482,2]
[311441592,1705114237945,-5322.96197508,0.0002763,2]
[311441593,1705114237954,-1000.0,0.0002764,7]
[311441594,1705114237963,-720.61,0.0002764,2]
[311441595,1705114237973,-1000.0,0.0002764,7]
[311441596,1705114237982,-599.20507929,0.0002764,7]
[311441597,1705114238034,-289.4002629,0.0002764,7]
[311441598,1705114238072,-111.39465781,0.0002764,7]
[311441600,1705114238082,-322.5954377,0.00027677,29]
[311441602,1705114238091,-152.27,0.00027697,2]
[311441604,1705114238102,-273.49,0.00027766,2]
[311441606,1705114238112,-800.0,0.00027776,5]
[311441608,1705114238121,-103.71960697,0.00027995,2]
[311441609,1705114238133,-48.55039303,0.00027995,2]
[311441610,1705114238142,-510.52920138,0.00028,6]
[311441611,1705114238153,-369.33794945,0.00028,6]
[311441612,1705114238162,-37.57794784,0.00028,2]
[311441613,1705114238195,-517.6374,0.00028,2]
[311441614,1705114238222,-161.79465216,0.00028,2]
[311441615,1705114238231,-712.17,0.00028,2]
[311441616,1705114238240,-3242.96219081,0.00028,2]
[311441617,1705114238250,-200.0,0.00028,2]
[311441618,1705114238259,-200.0,0.00028,2]
[311441619,1705114238269,-203.89275072,0.00028,2]
[311441620,1705114238280,-1882.50030638,0.00028,2]
[311441621,1705114238289,-156.64016682,0.00028143,2]
[311441622,1705114238298,-188.17,0.00028147,2]
[311441623,1705114238307,-251.04,0.00028189,2]
[311441624,1705114238316,-165.0,0.00028213,2]
[311441625,1705114238325,-800.0,0.0002827,5]
[311441626,1705114238334,-156.41,0.00028277,2]
[311441627,1705114238343,-152.27,0.00028293,2]
[311441628,1705114238354,-1038.55995095,0.00028303,2]
[311441629,1705114238364,-159.44,0.00028355,2]
[311441630,1705114238373,-1896.71,0.00028372,2]
[311441631,1705114238382,-809.93,0.00028372,2]
[311441632,1705114238392,-457.5831,0.00028501,2]
[311441633,1705114238401,-24958.0499671,0.00028521,2]
[311441634,1705114238413,-56305.5493038,0.00028521,2]
[311441635,1705114238424,-38286.0089291,0.00028521,2]
[311441636,1705114238433,-157.29983902,0.00028521,4]
[311441637,1705114238442,-152.27,0.00028591,2]
[311441638,1705114238452,-160.73,0.00028591,2]
[311441639,1705114238461,-150.0,0.000286,2]
[311441640,1705114238470,-150.0,0.000286,2]
[311441641,1705114238479,-150.0,0.000286,2]
[311441642,1705114238488,-150.0,0.000286,2]
[311441643,1705114238497,-150.0,0.000286,2]
[311441644,1705114238507,-197.3219,0.000286,2]
[311441645,1705114238516,-5129.487019,0.00028601,2]
[311441646,1705114238539,-784.20550947,0.00028601,2]
[311441647,1705114238569,-1036.00466843,0.00028601,2]
[311441648,1705114238594,-161.1885031,0.00028601,2]
[311441649,1705114238604,-6092.46526681,0.00028601,2]
[311441650,1705114238615,-258.61400001,0.00028601,2]
[311441652,1705114240147,-261.54262495,0.00028601,2]
[311441653,1705114240229,-4446.63058341,0.00028601,2]
[311441654,1705114240242,-504.88708,0.00028601,2]
[311441655,1705114240279,-452.25615153,0.00028601,2]
[311441656,1705114240291,-359.45574608,0.00028601,2]
[311441657,1705114240374,-1642.9,0.00028601,2]
[311441658,1705114240433,-1072.89527621,0.00028601,2]
[311441659,1705114240974,-251.58,0.00028601,2]
[311441678,1705114243202,-1142.8425381,0.00028601,2]
[311441679,1705114243222,-63323.22633042,0.00028601,2]
[311441680,1705114243233,-6120.94534268,0.00028601,2]
[311441681,1705114243244,-10617.3671999,0.00028601,2]
[311441682,1705114243257,-2134.3139599,0.00028601,2]
[311441683,1705114243268,-500.0,0.00028601,2]
[311441684,1705114243278,-500.0,0.00028603,7]
[311441685,1705114243287,-949.846,0.00028621,2]
[311441687,1705114243298,-839.0,0.00028621,2]
[311441689,1705114243306,-451.624,0.00028621,2]
[311441691,1705114243315,-225.142,0.00028621,2]
[311441692,1705114243324,-288.81072346,0.00028621,2]
[311441693,1705114243335,-952.44927654,0.00028621,2]
[311441694,1705114243346,-1242.622,0.00028621,2]
[311441695,1705114243358,-424.956,0.00028621,2]
[311441696,1705114243368,-425.0,0.00028621,2]
[311441697,1705114243377,-782.499,0.00028621,2]
[311441698,1705114243386,-885.81,0.00028621,2]
[311441700,1705114243395,-277.794,0.00028621,2]
[311441701,1705114243404,-71.34794174,0.00028621,2]
[311441702,1705114243415,-437.35605826,0.00028621,2]
[311441703,1705114243424,-319.864,0.00028621,2]
[311441704,1705114243433,-3673.817,0.00028621,2]
[311441705,1705114243442,-2923.338,0.00028621,2]
[311441706,1705114243452,-3076.56,0.00028621,2]
[311441707,1705114243461,-3756.8232574,0.00028621,2]
[311441708,1705114243476,-1470.26762691,0.00028621,2]
[311441709,1705114243495,-1160.85792437,0.00028621,2]
[311441710,1705114243601,-13295.05119132,0.00028621,2]
[311441711,1705114243614,-1411.487,0.00028621,2]
[311441712,1705114243623,-6241.838,0.00028621,2]
[311441713,1705114243632,-3029.244,0.00028621,2]
[311441714,1705114243641,-2283.44,0.00028621,2]
[311441715,1705114243651,-150.0,0.00028621,2]
[311441716,1705114243660,-174.346,0.00028621,2]
[311441717,1705114243669,-162.606,0.00028621,2]
[311441718,1705114243678,-150.0,0.00028621,2]
[311441719,1705114243687,-150.258,0.00028621,2]
[311441720,1705114243697,-200.0,0.00028621,2]
[311441721,1705114243706,-4467.62,0.00028699,2]
[311441722,1705114243715,-4467.62,0.00028699,2]
[311441723,1705114243725,-4467.62,0.00028699,2]
[311441724,1705114243735,-4467.62,0.00028699,2]
[311441725,1705114243744,-4467.62,0.00028699,2]
[311441726,1705114243753,-4467.62,0.00028699,2]
[311441727,1705114243762,-4467.62,0.00028699,2]
[311441728,1705114243771,-2637.96642149,0.00028699,2]
[311441731,1705114245661,-431.52537123,0.00028521,2]
[311441732,1705114245676,-422.89462877,0.00028699,2]
[311441733,1705114245739,-1406.75894974,0.00028699,2]
[311441734,1705114245754,-2857.34105026,0.00028699,2]
[311441745,1705114353738,209.0,0.00022283,2]
[311441747,1705114406762,476.0,0.00022542,2]
[311441749,1705114440177,1598.42520732,0.000229,6]
[311441750,1705114472503,4002.0,0.00022,2]
[311441751,1705114496296,5000.0,0.00022,2]
[311441752,1705114540430,5000.0,0.00022,2]
[311441753,1705114545281,5000.0,0.00022,2]
[311441754,1705114545384,5000.0,0.00022,2]
[311441755,1705114545488,5000.0,0.00022,2]
[311441756,1705114545844,5000.0,0.00022,2]
[311441757,1705114546216,5000.0,0.00022,2]
[311441758,1705114547704,5000.0,0.00022,2]
[311441759,1705114548226,5000.0,0.00022,2]
[311441760,1705114548612,5000.0,0.00022,2]
[311441761,1705114549003,5000.0,0.00022,2]
[311441762,1705114551136,5000.0,0.00022,2]
[311441763,1705114551618,5000.0,0.00022,2]
[311441764,1705114556218,5000.0,0.00022,2]
[311441765,1705114556307,5000.0,0.00022,2]
[311441766,1705114583647,5000.0,0.00022,2]
[311441767,1705114584082,5000.0,0.00022,2]
[311441768,1705114584703,5000.0,0.00022,2]
[311441769,1705114602629,4069.0,0.00022,2]
[311441770,1705114802319,2485.19,0.00031,120]
[311441772,1705115301037,600.0,0.00031,120]
[311441787,1705115431697,-156.2245456,0.000228,2]
[311441789,1705115431707,-156.22454558,0.0002285,2]
[311441790,1705115431716,-157.29983902,0.00022897,2]
[311441791,1705115431739,-74.8284498,0.000229,2]
[311441792,1705115431813,-425.425,0.000229,2]
[311441793,1705115431825,-1297.40718815,0.000229,2]
[311441794,1705115431837,-1390.53330448,0.000229,2]
[311441795,1705115431853,-2478.02852471,0.000229,2]
[311441796,1705115431864,-156.22454558,0.000229,2]
[311441797,1705115431872,-283.45725446,0.000229,2]
[311441798,1705115431891,-2692.06977532,0.000229,2]
[311441799,1705115431902,-2636.43472835,0.000229,2]
[311441800,1705115431913,-3225.18862013,0.000229,2]
[311441801,1705115431923,-693.04575349,0.000229,2]
[311441802,1705115433523,-264.55,0.000229,2]
[311441829,1705115437802,-2086.42365342,0.000229,2]
[311441831,1705115437813,-8411.96172883,0.000229,2]
[311441834,1705115437825,-3319.22562867,0.000229,2]
[311441836,1705115437836,-3716.27633672,0.000229,2]
[311441837,1705115437848,-28226.36652061,0.000229,2]
[311441838,1705115437859,-369.37582592,0.000229,2]
[311441839,1705115437868,-73696.63498101,0.000229,2]
[311441840,1705115437982,-19547.46501899,0.000229,2]
[311441841,1705115437992,-2499.52436189,0.000229,2]
[311441842,1705115438001,-249.3074368,0.000229,2]
[311441843,1705115438011,-143796.54955023,0.00022996,2]
[311441844,1705115438020,-28664.83076439,0.00022997,2]
[311441845,1705115438029,-150.0,0.00022999,2]
[311441846,1705115438038,-150.0,0.00022999,2]
[311441847,1705115438047,-150.0,0.00022999,2]
[311441848,1705115438057,-150.0,0.00022999,2]
[311441849,1705115438066,-150.0,0.00022999,2]
[311441850,1705115438075,-150.0,0.00022999,2]
[311441851,1705115438085,-150.0,0.00022999,2]
[311441852,1705115438094,-1456673.61232831,0.00023,2]
[311441853,1705115438104,-12417336.59767619,0.00023,2]
[311441854,1705115438116,-824976.04090568,0.00023,2]
[311441855,1705115438127,-263477.85005223,0.00023,2]
[311441856,1705115438139,-549.28289986,0.00023,2]
[311441859,1705115438170,-423.960767,0.00023,2]
[311441919,1705115440176,-23847.92898848,0.00023,2]
[311441920,1705115440261,-581.68084642,0.00023,2]
[311441921,1705115440289,-1461.14087315,0.00023,2]
[311441939,1705115442703,-576.49203545,0.00023,2]
[311441943,1705115442755,-2697.13405034,0.00023,2]
[311441945,1705115442767,-663.02156277,0.00023,2]
[311441952,1705115442823,-299.27023973,0.00023,2]
[311441957,1705115442978,-5009.13752591,0.00023,2]
[311441967,1705115445801,-3064.97802633,0.00023,2]
[311441968,1705115445862,-4675.11,0.00023,2]